fUST/lending_fUST_20251018
["ID","MTS","AMOUNT","RATE_DAILY","PERIOD"]
[391779495,1760801444013,-58500.0,0.00033963,2]
[391779497,1760801444029,-1163.37570261,0.00033963,15]
[391779499,1760801444042,-353.79594321,0.00033963,2]
[391779501,1760801444053,-634.1982,0.00033963,20]
[391779503,1760801444063,-500.0,0.00033963,7]
[391779505,1760801444073,-500.0,0.00033963,7]
[391779507,1760801444084,-500.0,0.00033963,2]
[391779510,1760801444095,-501.07740083,0.00033963,2]
[391779512,1760801444105,-500.0,0.00033963,2]
[391779514,1760801444115,-500.0,0.00033963,2]
[391779515,1760801444125,-500.0,0.00033963,2]
[391779518,1760801444135,-500.0,0.00033963,2]
[391779519,1760801444145,-389.26394095,0.00033963,2]
[391779522,1760801444156,-500.0,0.00033963,7]
[391779524,1760801444166,-500.0,0.00033963,7]
[391779526,1760801444180,-896.2,0.00033963,30]
[391779528,1760801444193,-896.2,0.00033963,30]
[391779530,1760801444206,-896.2,0.00033963,30]
[391779532,1760801444217,-896.2,0.00033963,30]
[391779534,1760801444227,-896.2,0.00033963,30]
[391779536,1760801444237,-896.2,0.00033963,30]
[391779538,1760801444248,-896.2,0.00033963,30]
[391779540,1760801444258,-896.2,0.00033963,30]
[391779542,1760801444270,-896.2,0.00033963,30]
[391779544,1760801444280,-896.2,0.00033963,30]
[391779547,1760801444291,-896.2,0.00033963,30]
[391779549,1760801444301,-896.2,0.00033963,30]
[391779551,1760801444310,-896.2,0.00033963,30]
[391779553,1760801444319,-896.2,0.00033963,30]
[391779567,1760801444451,-896.2,0.00033963,30]
[391779570,1760801444468,-896.2,0.00033963,30]
[391779572,1760801444479,-896.2,0.00033963,30]
[391779574,1760801444487,-896.2,0.00033963,30]
[391779575,1760801444497,-896.2,0.00033963,30]
[391779576,1760801444508,-896.2,0.00033963,30]
[391779577,1760801444517,-896.2,0.00033963,30]
[391779578,1760801444526,-896.2,0.00033963,30]
[391779579,1760801444535,-896.2,0.00033963,30]
[391779580,1760801444545,-896.32301652,0.00033963,30]
[391779581,1760801444555,-500.0,0.00033963,30]
[391779582,1760801444565,-500.0,0.00033963,30]
[391779583,1760801444575,-500.0,0.00033963,30]
[391779584,1760801444585,-500.0,0.00033963,30]
[391779585,1760801444596,-500.0,0.00033963,30]
[391779586,1760801444605,-500.0,0.00033963,30]
[391779587,1760801444615,-500.0,0.00033963,30]
[391779588,1760801444624,-501.85661516,0.00033963,30]
[391779589,1760801444633,-500.0,0.00033963,20]
[391779590,1760801444642,-500.0,0.00033963,20]
[391779591,1760801444651,-500.0,0.00033963,20]
[391779592,1760801444660,-500.0,0.00033963,20]
[391779593,1760801444670,-500.0,0.00033963,20]
[391779594,1760801444679,-500.0,0.00033963,20]
[391779595,1760801444688,-542.46279123,0.00033963,20]
[391779596,1760801444697,-398.22496145,0.00033963,20]
[391779597,1760801444707,-500.0,0.00033963,2]
[391779598,1760801444716,-500.0,0.00033963,2]
[391779599,1760801444725,-517.14340915,0.00033963,2]
[391779600,1760801444735,-250.0,0.00033963,10]
[391779601,1760801444744,-250.0,0.00033963,10]
[391779602,1760801444755,-250.0,0.00033963,10]
[391779603,1760801444772,-500.0,0.00033963,2]
[391779604,1760801444782,-548.40378406,0.00033963,2]
[391779605,1760801444792,-500.0,0.00033963,3]
[391779606,1760801444804,-500.0,0.00033963,3]
[391779607,1760801444814,-500.0,0.00033963,3]
[391779608,1760801444823,-500.0,0.00033963,3]
[391779609,1760801444831,-2494.76650696,0.00033963,7]
[391779610,1760801444840,-500.0,0.00033963,3]
[391779611,1760801444850,-500.0,0.00033963,3]
[391779612,1760801444859,-500.0,0.00033963,3]
[391779613,1760801444868,-500.0,0.00033963,3]
[391779614,1760801444877,-500.0,0.00033963,3]
[391779615,1760801444887,-500.0,0.00033963,3]
[391779616,1760801444896,-500.0,0.00033963,3]
[391779617,1760801444906,-500.0,0.00033963,3]
[391779618,1760801444915,-500.0,0.00033963,3]
[391779619,1760801444926,-500.0,0.00033963,3]
[391779620,1760801444935,-500.0,0.00033963,3]
[391779621,1760801444946,-500.0,0.00033963,3]
[391779622,1760801444956,-500.0,0.00033963,3]
[391779623,1760801444966,-500.0,0.00033963,3]
[391779624,1760801444976,-500.0,0.00033963,3]
[391779625,1760801444985,-155.97885001,0.00033963,3]
[391779626,1760801444995,-500.0,0.00033963,21]
[391779627,1760801445005,-500.0,0.00033963,21]
[391779628,1760801445014,-500.0,0.00033963,21]
[391779629,1760801445025,-500.0,0.00033963,21]
[391779630,1760801445034,-500.0,0.00033963,21]
[391779631,1760801445044,-500.0,0.00033963,21]
[391779632,1760801445054,-500.0,0.00033963,21]
[391779633,1760801445064,-500.0,0.00033963,21]
[391779634,1760801445073,-353.8981689,0.00033963,21]
[391779635,1760801445083,-500.0,0.00033963,30]
[391779636,1760801445093,-500.0,0.00033963,30]
[391779637,1760801445103,-500.0,0.00033963,30]
[391779638,1760801445112,-406.79453388,0.00033963,30]
[391779639,1760801445123,-821.36,0.00033963,30]
[391779640,1760801445132,-821.36,0.00033963,30]
[391779641,1760801445141,-821.36,0.00033963,30]
[391779642,1760801445151,-821.36,0.00033963,30]
[391779643,1760801445161,-821.36,0.00033963,30]
[391779644,1760801445170,-821.36,0.00033963,30]
[391779645,1760801445180,-821.36,0.00033963,30]
[391779646,1760801445189,-821.36,0.00033963,30]
[391779647,1760801445199,-821.36,0.00033963,30]
[391779648,1760801445209,-821.36,0.00033963,30]
[391779649,1760801445220,-821.36,0.00033963,30]
[391779650,1760801445230,-821.36,0.00033963,30]
[391779651,1760801445239,-821.36,0.00033963,30]
[391779652,1760801445248,-821.36,0.00033963,30]
[391779653,1760801445258,-821.36,0.00033963,30]
[391779654,1760801445268,-821.36,0.00033963,30]
[391779655,1760801445278,-821.36,0.00033963,30]
[391779656,1760801445287,-821.36,0.00033963,30]
[391779657,1760801445296,-821.36,0.00033963,30]
[391779658,1760801445305,-821.36,0.00033963,30]
[391779659,1760801445315,-821.36,0.00033963,30]
[391779660,1760801445325,-821.36,0.00033963,30]
[391779661,1760801445335,-821.36,0.00033963,30]
[391779662,1760801445344,-821.55659503,0.00033963,30]
[391779663,1760801445354,-154.491002,0.00033963,7]
[391779664,1760801445363,-154.491002,0.00033997,2]
[391779665,1760801445373,-3142.0,0.00034,60]
[391779666,1760801445382,-200.0,0.00034,120]
[391779667,1760801445391,-400.0,0.00034,60]
[391779668,1760801445400,-400.0,0.00034,60]
[391779669,1760801445409,-500.0,0.00034,30]
[391779670,1760801445419,-154.491002,0.00034,15]
[391779671,1760801445430,-19312.07,0.00034,14]
[391779672,1760801445440,-264.0,0.00034004,2]
[391779673,1760801445449,-798.0,0.00034009,60]
[391779674,1760801445458,-248.808,0.0003401,5]
[391779675,1760801445467,-165.871,0.0003401,5]
[391779676,1760801445477,-402.72,0.00034015,60]
[391779677,1760801445487,-5000.0,0.00034085,60]
[391779678,1760801445496,-251.10903661,0.00034087,120]
[391779679,1760801445505,-200.0,0.00034092,120]
[391779680,1760801445514,-2824.89831752,0.000341,7]
[391779681,1760801445524,-300.0,0.000341,2]
[391779682,1760801445534,-10000.0,0.0003411,60]
[391779683,1760801445542,-10000.0,0.0003411,60]
[391779684,1760801445552,-361.42,0.00034112,60]
[391779685,1760801445561,-500.0,0.00034115,5]
[391779686,1760801445571,-402.72,0.00034115,60]
[391779687,1760801445580,-10000.0,0.00034127,60]
[391779688,1760801445589,-10000.0,0.00034127,60]
[391779689,1760801445599,-10000.0,0.00034127,60]
[391779690,1760801445608,-10000.0,0.00034127,60]
[391779691,1760801445619,-10000.0,0.00034127,60]
[391779692,1760801445628,-3508.0,0.0003413,60]
[391779693,1760801445637,-175.154,0.00034144,5]
[391779694,1760801445646,-1404.1837994,0.00034166,2]
[391779695,1760801445656,-1000.0,0.00034178,30]
[391779696,1760801445666,-166.94723962,0.0003421,120]
[391779697,1760801445675,-402.72,0.00034215,60]
[391779698,1760801445684,-196.0,0.0003423,37]
[391779699,1760801445693,-444.32,0.00034309,60]
[391779700,1760801445703,-324.17,0.00034314,60]
[391779701,1760801445713,-402.72,0.00034315,60]
[391779702,1760801445722,-1228.50543892,0.00034316,2]
[391779703,1760801445732,-543.25,0.00034318,60]
[391779704,1760801445742,-779.4,0.00034328,60]
[391779705,1760801445751,-264.0,0.00034341,7]
[391779706,1760801445760,-996.93,0.00034378,60]
[391779707,1760801445770,-825.04,0.00034381,60]
[391779708,1760801445779,-151.15,0.0003439,60]
[391779709,1760801445788,-228.45,0.00034408,60]
[391779710,1760801445798,-301.62,0.00034409,60]
[391779711,1760801445808,-444.56,0.00034409,60]
[391779712,1760801445817,-324.23,0.00034414,60]
[391779713,1760801445826,-402.84633688,0.00034415,60]
[391779714,1760801445835,-543.25,0.00034418,60]
[391779715,1760801445844,-200.0,0.00034428,120]
[391779716,1760801445854,-779.52,0.00034428,60]
[391779717,1760801445863,-264.0,0.0003447,2]
[391779718,1760801445872,-996.93,0.00034478,60]
[391779719,1760801445881,-825.04,0.00034481,60]
[391779720,1760801445890,-151.15,0.0003449,60]
[391779721,1760801445900,-1500.0,0.00034518,7]
[391779722,1760801445909,-264.0,0.00034537,2]
[391779724,1760801445919,-200.0,0.00034547,120]
[391779725,1760801445927,-996.93000007,0.00034578,60]
[391779726,1760801445937,-825.13,0.00034581,60]
[391779727,1760801445946,-151.15,0.0003459,60]
[391779728,1760801445955,-1152.0,0.0003465,2]
[391779729,1760801445964,-264.0,0.00034683,2]
[391779730,1760801445974,-151.15,0.0003469,60]
[391779731,1760801445984,-508.62,0.000347,12]
[391779732,1760801445994,-200.0,0.00034749,120]
[391779733,1760801446003,-151.15,0.0003479,60]
[391779734,1760801446013,-1444.0,0.00034849,120]
[391779735,1760801446023,-151.15,0.0003489,60]
[391779736,1760801446032,-2000.0,0.000349,14]
[391779737,1760801446042,-5582.71363687,0.000349,2]
[391779738,1760801446051,-829.79819486,0.00034904,30]
[391779739,1760801446061,-264.0,0.00034913,2]
[391779740,1760801446070,-168.0,0.00034962,2]
[391779741,1760801446080,-151.15,0.0003499,60]
[391779742,1760801446090,-191.83,0.00034999,120]
[391779743,1760801446099,-655.24152322,0.00035,2]
[391779744,1760801446108,-10670.63362662,0.00035,2]
[391779745,1760801446118,-572.13421571,0.00035,120]
[391779746,1760801446127,-620.60134166,0.00035,120]
[391779747,1760801446136,-421.36619875,0.00035,60]
[391779748,1760801446146,-250.0,0.00035,7]
[391779749,1760801446155,-150.0,0.00035,69]
[391779750,1760801446165,-202.72481138,0.00035,2]
[391779751,1760801446175,-227180.41310846,0.00035,5]
[391779758,1760801740226,3397.992811,0.0003395,60]
[391779811,1760802632630,-160.0,0.00025613,2]
[391779813,1760802632640,-2515.07697018,0.00026,2]
[391779815,1760802632649,-300.0,0.00026167,2]
[391779816,1760802632659,-300.0,0.00026168,30]
[391779818,1760802632669,-300.0,0.00026168,30]
[391779819,1760802632679,-300.0,0.00026168,30]
[391779820,1760802632689,-300.0,0.00026168,30]
[391779821,1760802632699,-300.0,0.00026168,30]
[391779822,1760802632708,-300.0,0.00026168,30]
[391779823,1760802632719,-300.0,0.00026168,30]
[391779824,1760802632728,-300.0,0.00026168,30]
[391779825,1760802632738,-300.0,0.00026168,30]
[391779826,1760802632748,-300.0,0.00026168,30]
[391779827,1760802632757,-300.0,0.00026168,30]
[391779828,1760802632767,-300.0,0.00026168,30]
[391779829,1760802632777,-300.0,0.00026168,30]
[391779830,1760802632787,-300.0,0.00026168,30]
[391779831,1760802632796,-300.0,0.00026168,30]
[391779832,1760802632805,-600.0,0.00026168,30]
[391779833,1760802632817,-150.0,0.00027077,2]
[391779835,1760802632826,-402.78104431,0.00027379,2]
[391779837,1760802632836,-3200.0,0.00027397,10]
[391779839,1760802632845,-500.0,0.00027685,7]
[391779841,1760802632855,-500.0,0.00027778,7]
[391779842,1760802632865,-179.64071856,0.00027848,2]
[391779843,1760802632874,-474.8077152,0.00027851,2]
[391779844,1760802632883,-420.0,0.00028314,2]
[391779845,1760802632893,-720.0,0.00028785,30]
[391779846,1760802632903,-501.0,0.00028888,5]
[391779847,1760802632913,-1224.63,0.00029,2]
[391779848,1760802632923,-157.252712,0.00029945,2]
[391779849,1760802632933,-587.0,0.00030636,2]
[391779850,1760802632944,-500.0,0.00030996,2]
[391779851,1760802632954,-500.0,0.00030996,2]
[391779852,1760802632963,-500.0,0.00030996,2]
[391779853,1760802632973,-638.14437958,0.00030996,2]
[391779854,1760802632984,-500.0,0.00030996,2]
[391779855,1760802632994,-430.62468735,0.00030996,2]
[391779856,1760802633004,-500.0,0.00030996,2]
[391779857,1760802633014,-500.0,0.00030996,2]
[391779858,1760802633023,-500.0,0.00030996,2]
[391779859,1760802633033,-500.0,0.00030996,2]
[391779860,1760802633043,-500.0,0.00030996,2]
[391779861,1760802633053,-540.65242776,0.00030996,2]
[391779862,1760802633065,-332.6779599,0.00030996,2]
[391779863,1760802633075,-500.0,0.00030996,2]
[391779864,1760802633084,-500.0,0.00030996,2]
[391779865,1760802633094,-254.53172056,0.00030996,2]
[391779866,1760802633103,-500.0,0.00030996,2]
[391779867,1760802633113,-309.94719068,0.00030996,2]
[391779868,1760802633122,-1003.51501274,0.00031074,2]
[391779869,1760802633133,-179.03,0.00031089,28]
[391779870,1760802633142,-1106.373,0.00031093,2]
[391779871,1760802633152,-2162.0,0.00031093,2]
[391779872,1760802633161,-631.0,0.00031093,2]
[391779873,1760802633171,-343.36,0.00031211,15]
[391779874,1760802633180,-343.36,0.00031311,15]
[391779875,1760802633190,-343.36,0.00031411,15]
[391779876,1760802633199,-343.36,0.00031511,15]
[391779877,1760802633213,-343.36,0.00031611,15]
[391779878,1760802633223,-864.0,0.00031664,30]
[391779879,1760802633233,-343.36,0.00031711,15]
[391779880,1760802633243,-157.252712,0.0003175,7]
[391779881,1760802633253,-343.36,0.00031811,15]
[391779882,1760802633263,-343.36,0.00031911,15]
[391779883,1760802633273,-343.36,0.00032011,15]
[391779884,1760802633283,-168.0,0.00032034,7]
[391779885,1760802633293,-343.36,0.00032111,15]
[391779886,1760802633303,-168.0,0.0003214,7]
[391779887,1760802633315,-343.36,0.00032211,15]
[391779888,1760802633325,-343.36,0.00032311,15]
[391779889,1760802633334,-343.36,0.00032411,15]
[391779890,1760802633343,-157.252712,0.00032467,2]
[391779891,1760802633352,-343.36,0.00032511,15]
[391779892,1760802633362,-168.0,0.00032541,2]
[391779893,1760802633372,-343.36,0.00032611,15]
[391779894,1760802633382,-343.36,0.00032711,15]
[391779895,1760802633392,-168.0,0.00032735,2]
[391779896,1760802633401,-244.40904537,0.00032795,30]
[391779897,1760802633410,-343.36,0.00032811,15]
[391779898,1760802633420,-1003.5150127,0.00032835,2]
[391779899,1760802633429,-160.0,0.00032846,3]
[391779900,1760802633438,-238.13426891,0.00032877,2]
[391779901,1760802633448,-343.36,0.00032911,60]
[391779902,1760802633457,-168.0,0.00032929,2]
[391779903,1760802633467,-1597.36268219,0.0003295,2]
[391779904,1760802633476,-168.0,0.0003299,2]
[391779905,1760802633486,-343.36,0.00033011,60]
[391779906,1760802633495,-1100.0,0.00033082,7]
[391779907,1760802633504,-157.252712,0.00033104,15]
[391779908,1760802633514,-343.36,0.00033111,60]
[391779909,1760802633523,-168.0,0.00033132,7]
[391779910,1760802633533,-823.0,0.0003315,2]
[391779911,1760802633542,-343.36,0.00033211,60]
[391779912,1760802633552,-343.36,0.00033311,60]
[391779913,1760802633563,-157.252712,0.00033375,7]
[391779914,1760802633573,-1064.87246166,0.00033386,4]
[391779915,1760802633582,-343.36,0.00033411,60]
[391779916,1760802633592,-343.36,0.00033511,60]
[391779917,1760802633602,-168.0,0.0003353,7]
[391779918,1760802633612,-157.252712,0.00033552,15]
[391779919,1760802633622,-168.0,0.00033565,2]
[391779920,1760802633632,-600.0,0.000336,2]
[391779921,1760802633641,-343.36,0.00033611,60]
[391779922,1760802633651,-168.0,0.0003363,2]
[391779923,1760802633661,-290.64,0.0003366,10]
[391779924,1760802633670,-343.36,0.00033711,60]
[391779925,1760802633679,-168.0,0.00033745,2]
[391779926,1760802633688,-1512.4291427,0.0003378,32]
[391779927,1760802633698,-168.0,0.00033794,2]
[391779928,1760802633707,-9656.03,0.000338,14]
[391779929,1760802633718,-343.36,0.00033811,60]
[391779930,1760802633727,-2008.44202804,0.0003385,2]
[391779931,1760802633737,-476.30858748,0.0003385,2]
[391779932,1760802633747,-2000.0,0.000339,11]
[391779933,1760802633757,-300.0,0.000339,2]
[391779934,1760802633766,-1500.0,0.000339,14]
[391779935,1760802633775,-205.633233,0.000339,2]
[391779936,1760802633785,-1100.0,0.00033904,7]
[391779937,1760802633795,-343.36,0.00033911,60]
[391779938,1760802633804,-203.57348552,0.00033939,7]
[391779939,1760802633814,-434.41501082,0.00033939,7]
[391779940,1760802633823,-193.28,0.0003394,3]
[391779941,1760802633832,-579.88,0.0003394,3]
[391779942,1760802633842,-50008.3765175,0.0003394,2]
[391779943,1760802633852,-16863.7079551,0.0003394,2]
[391779944,1760802633862,-16669.4588392,0.00033941,2]
[391779945,1760802633871,-5621.23598503,0.00033941,2]
[391779946,1760802633880,-242.57072281,0.00033949,2]
[391779947,1760802633890,-1105.9,0.0003395,30]
[391779948,1760802633899,-353.79594321,0.0003395,2]
[391779949,1760802633909,-500.0,0.0003395,2]
[391779950,1760802633919,-500.0,0.0003395,2]
[391779951,1760802633928,-500.0,0.0003395,2]
[391779952,1760802633938,-500.0,0.0003395,2]
[391779953,1760802633947,-389.26394095,0.0003395,2]
[391779954,1760802633956,-150.0,0.0003395,2]
[391779955,1760802633966,-500.0,0.0003395,7]
[391779956,1760802633975,-500.0,0.0003395,7]
[391779957,1760802633984,-500.0,0.0003395,30]
[391779958,1760802633994,-500.0,0.0003395,30]
[391779959,1760802634005,-500.0,0.0003395,30]
[391779960,1760802634014,-500.0,0.0003395,30]
[391779961,1760802634023,-500.0,0.0003395,30]
[391779962,1760802634033,-500.0,0.0003395,30]
[391779963,1760802634043,-500.0,0.0003395,30]
[391779964,1760802634062,-501.85661516,0.0003395,30]
[391779965,1760802634073,-500.0,0.0003395,20]
[391779966,1760802634083,-500.0,0.0003395,20]
[391779967,1760802634092,-500.0,0.0003395,20]
[391779968,1760802634102,-500.0,0.0003395,20]
[391779969,1760802634111,-500.0,0.0003395,20]
[391779970,1760802634120,-500.0,0.0003395,20]
[391779971,1760802634131,-542.46279123,0.0003395,20]
[391779972,1760802634140,-398.22496145,0.0003395,20]
[391779973,1760802634149,-634.1982,0.0003395,2]
[391779974,1760802634159,-500.0,0.0003395,2]
[391779975,1760802634168,-500.0,0.0003395,2]
[391779976,1760802634177,-517.14340915,0.0003395,2]
[391779977,1760802634188,-500.0,0.0003395,2]
[391779978,1760802634198,-548.40378406,0.0003395,2]
[391779979,1760802634211,-896.2,0.0003395,30]
[391779980,1760802634221,-896.2,0.0003395,30]
[391779981,1760802634231,-896.2,0.0003395,30]
[391779982,1760802634241,-896.2,0.0003395,30]
[391779983,1760802634251,-896.2,0.0003395,30]
[391779984,1760802634260,-896.2,0.0003395,30]
[391779985,1760802634270,-896.2,0.0003395,30]
[391779986,1760802634279,-896.2,0.0003395,30]
[391779987,1760802634288,-896.2,0.0003395,30]
[391779988,1760802634298,-896.2,0.0003395,30]
[391779989,1760802634307,-896.2,0.0003395,30]
[391779990,1760802634317,-896.2,0.0003395,30]
[391779991,1760802634327,-896.2,0.0003395,30]
[391779992,1760802634336,-896.2,0.0003395,30]
[391779993,1760802634346,-896.2,0.0003395,30]
[391779994,1760802634356,-896.2,0.0003395,30]
[391779995,1760802634365,-896.2,0.0003395,30]
[391779996,1760802634375,-896.2,0.0003395,30]
[391779997,1760802634384,-896.2,0.0003395,30]
[391779998,1760802634394,-896.2,0.0003395,30]
[391779999,1760802634403,-896.2,0.0003395,30]
[391780000,1760802634413,-896.2,0.0003395,30]
[391780001,1760802634423,-896.2,0.0003395,30]
[391780002,1760802634433,-896.32301652,0.0003395,30]
[391780003,1760802634443,-250.0,0.0003395,10]
[391780004,1760802634454,-250.0,0.0003395,10]
[391780005,1760802634463,-250.0,0.0003395,10]
[391780006,1760802634472,-349.679349,0.0003395,10]
[391780007,1760802634482,-500.0,0.0003395,7]
[391780008,1760802634492,-500.0,0.0003395,7]
[391780009,1760802634501,-500.0,0.0003395,2]
[391780010,1760802634511,-501.07740083,0.0003395,2]
[391780011,1760802634520,-500.0,0.0003395,3]
[391780012,1760802634530,-500.0,0.0003395,3]
[391780013,1760802634539,-500.0,0.0003395,3]
[391780014,1760802634549,-500.0,0.0003395,3]
[391780015,1760802634558,-500.0,0.0003395,3]
[391780016,1760802634568,-500.0,0.0003395,3]
[391780017,1760802634577,-500.0,0.0003395,3]
[391780018,1760802634587,-500.0,0.0003395,3]
[391780019,1760802634597,-500.0,0.0003395,3]
[391780020,1760802634608,-500.0,0.0003395,3]
[391780021,1760802634618,-500.0,0.0003395,3]
[391780022,1760802634627,-500.0,0.0003395,3]
[391780023,1760802634636,-500.0,0.0003395,3]
[391780024,1760802634646,-500.0,0.0003395,3]
[391780025,1760802634655,-500.0,0.0003395,3]
[391780026,1760802634665,-500.0,0.0003395,3]
[391780027,1760802634674,-500.0,0.0003395,3]
[391780028,1760802634684,-500.0,0.0003395,3]
[391780029,1760802634693,-500.0,0.0003395,3]
[391780030,1760802634703,-155.97885001,0.0003395,3]
[391780031,1760802634712,-500.0,0.0003395,21]
[391780032,1760802634722,-500.0,0.0003395,21]
[391780033,1760802634731,-500.0,0.0003395,21]
[391780034,1760802634740,-500.0,0.0003395,21]
[391780035,1760802634749,-500.0,0.0003395,21]
[391780036,1760802634759,-500.0,0.0003395,21]
[391780037,1760802634768,-500.0,0.0003395,21]
[391780038,1760802634777,-500.0,0.0003395,21]
[391780039,1760802634786,-353.8981689,0.0003395,21]
[391780040,1760802634795,-821.36,0.0003395,30]
[391780041,1760802634804,-821.36,0.0003395,30]
[391780042,1760802634815,-821.36,0.0003395,30]
[391780043,1760802634824,-821.36,0.0003395,30]
[391780044,1760802634834,-821.36,0.0003395,30]
[391780045,1760802634843,-821.36,0.0003395,30]
[391780046,1760802634853,-821.36,0.0003395,30]
[391780047,1760802634862,-821.36,0.0003395,30]
[391780048,1760802634872,-821.36,0.0003395,30]
[391780049,1760802634882,-821.36,0.0003395,30]
[391780050,1760802634891,-821.36,0.0003395,30]
[391780051,1760802634901,-821.36,0.0003395,30]
[391780052,1760802634910,-821.36,0.0003395,30]
[391780053,1760802634919,-821.36,0.0003395,30]
[391780054,1760802634928,-821.36,0.0003395,30]
[391780055,1760802634938,-821.36,0.0003395,30]
[391780056,1760802634947,-821.36,0.0003395,30]
[391780057,1760802634957,-821.36,0.0003395,30]
[391780058,1760802634969,-821.36,0.0003395,30]
[391780059,1760802634979,-821.36,0.0003395,30]
[391780060,1760802634989,-821.36,0.0003395,30]
[391780061,1760802634999,-821.36,0.0003395,30]
[391780062,1760802635008,-821.36,0.0003395,30]
[391780063,1760802635018,-821.55659503,0.0003395,30]
[391780064,1760802635027,-500.0,0.0003395,30]
[391780065,1760802635036,-500.0,0.0003395,30]
[391780066,1760802635046,-500.0,0.0003395,30]
[391780067,1760802635055,-406.79453388,0.0003395,30]
[391780068,1760802635065,-250.0,0.0003395,2]
[391780069,1760802635074,-250.0,0.0003395,2]
[391780070,1760802635083,-3986.83,0.0003395,120]
[391780071,1760802635093,-600.0,0.0003395,2]
[391780072,1760802635102,-10000.0,0.0003395,2]
[391780073,1760802635111,-10000.0,0.0003395,2]
[391780074,1760802635120,-10000.0,0.0003395,2]
[391780075,1760802635129,-10000.0,0.0003395,2]
[391780076,1760802635139,-10000.0,0.0003395,2]
[391780077,1760802635148,-861.0,0.0003395,2]
[391780078,1760802635157,-213.53566877,0.0003395,60]
[391780079,1760802635166,-5000.0,0.0003395,60]
[391780080,1760802635176,-5000.0,0.0003395,60]
[391780081,1760802635186,-10000.0,0.0003395,60]
[391780082,1760802635195,-10000.0,0.0003395,60]
[391780083,1760802635210,-10000.0,0.0003395,60]
[391780084,1760802635220,-10000.0,0.0003395,60]
[391780085,1760802635230,-10000.0,0.0003395,60]
[391780086,1760802635239,-1457.0,0.0003395,60]
[391780087,1760802635250,-5000.0,0.00033951,60]
[391780088,1760802635260,-5000.0,0.00033951,60]
[391780089,1760802635269,-5000.0,0.00033951,60]
[391780090,1760802635279,-5000.0,0.00033951,60]
[391780091,1760802635288,-5000.0,0.00033951,60]
[391780092,1760802635297,-1912.02977442,0.00033951,60]
[391780093,1760802635358,-1979.00056979,0.00033951,60]
[391780094,1760802635486,-1108.96965579,0.00033951,60]
[391780095,1760802635498,-5000.0,0.00033951,60]
[391780096,1760802635508,-5000.0,0.00033951,60]
[391780097,1760802635517,-5000.0,0.00033951,60]
[391780098,1760802635533,-5000.0,0.00033951,60]
[391780099,1760802635545,-5000.0,0.00033951,60]
[391780100,1760802635554,-5000.0,0.00033951,60]
[391780101,1760802635565,-356.52307401,0.00033951,60]
[391780102,1760802635574,-175.154,0.00033953,2]
[391780103,1760802635584,-186.606,0.00033953,2]
[391780104,1760802635593,-1224.0,0.00033963,60]
[391780105,1760802635603,-157.252712,0.00033982,20]
[391780106,1760802635611,-157.252712,0.00033991,20]
[391780107,1760802635621,-2824.89831752,0.00034,7]